fUSD/lending_fUSD_20250108
["ID","MTS","AMOUNT","RATE_DAILY","PERIOD"]
[348077205,1736295057851,-500.0,0.00010645,2]
[348077206,1736295057860,-500.0,0.00010645,2]
[348077207,1736295057869,-500.0,0.00010645,2]
[348077208,1736295057878,-202.68322486,0.00010645,2]
[348077209,1736295057887,-500.0,0.00010645,2]
[348077210,1736295057898,-500.0,0.00010645,2]
[348077211,1736295057908,-1866.42,0.00010645,2]
[348077212,1736295057917,-500.0,0.00010645,2]
[348077213,1736295057926,-500.0,0.00010645,2]
[348077214,1736295057936,-1236.86,0.00010645,2]
[348077215,1736295057946,-626.78,0.00010645,2]
[348077216,1736295057957,-500.0,0.00010645,2]
[348077217,1736295057966,-500.0,0.00010645,2]
[348077218,1736295057976,-1347.36,0.00010645,2]
[348077219,1736295057986,-250.10287445,0.00010645,2]
[348077220,1736295057996,-500.0,0.00010645,2]
[348077221,1736295058007,-500.0,0.00010645,2]
[348077222,1736295058016,-500.0,0.00010645,2]
[348077223,1736295058025,-500.0,0.00010645,2]
[348077224,1736295058035,-1183.93,0.00010645,2]
[348077225,1736295058044,-500.0,0.00010645,2]
[348077226,1736295058055,-500.22,0.00010645,2]
[348077227,1736295058065,-609.7,0.00010645,2]
[348077228,1736295058077,-1484.49,0.00010645,2]
[348077229,1736295058087,-500.0,0.00010645,2]
[348077230,1736295058097,-504.81,0.00010645,2]
[348077231,1736295058107,-500.0,0.00010645,2]
[348077232,1736295058116,-1267.42,0.00010646,2]
[348077233,1736295058125,-692.26,0.00010646,2]
[348077234,1736295058134,-500.0,0.00010646,2]
[348077235,1736295058144,-500.0,0.00010646,2]
[348077236,1736295058153,-500.0,0.00010646,2]
[348077237,1736295058162,-500.0,0.00010646,2]
[348077238,1736295058171,-500.0,0.00010646,2]
[348077239,1736295058180,-500.0,0.00010646,2]
[348077240,1736295058189,-549.94,0.00010646,2]
[348077241,1736295058200,-760.1,0.00010646,2]
[348077242,1736295058209,-649.67,0.00010646,2]
[348077243,1736295058218,-1273.41,0.00010646,2]
[348077244,1736295058228,-3086.54,0.00010646,2]
[348077245,1736295058238,-607.04,0.00010646,2]
[348077246,1736295058247,-500.0,0.00010646,2]
[348077247,1736295058256,-500.0,0.00010646,2]
[348077248,1736295058267,-1500.93,0.00010646,2]
[348077249,1736295058276,-500.0,0.00010646,2]
[348077250,1736295058285,-596.56,0.00010646,2]
[348077251,1736295058294,-890.57,0.00010658,2]
[348077252,1736295058303,-979.45,0.00010658,2]
[348077253,1736295058312,-300.0,0.00010658,2]
[348077254,1736295058322,-150.0,0.00010658,2]
[348077255,1736295058332,-151.37,0.00010658,2]
[348077256,1736295058340,-150.0,0.00010658,2]
[348077257,1736295058350,-150.0,0.00010658,2]
[348077258,1736295058360,-150.0,0.00010679,2]
[348077259,1736295058369,-150.0,0.00010679,2]
[348077260,1736295058378,-207.88722328,0.000107,2]
[348077261,1736295058387,-199.137359,0.00010703,2]
[348077262,1736295058396,-216.630009,0.00010703,2]
[348077263,1736295058406,-289.7862798,0.00010721,2]
[348077264,1736295058416,-500.0,0.00010721,2]
[348077265,1736295058425,-441.23045435,0.00010721,2]
[348077266,1736295058435,-150.0,0.0001073,2]
[348077267,1736295058444,-150.0,0.0001073,2]
[348077268,1736295058454,-150.0,0.00010781,2]
[348077269,1736295058464,-150.0,0.00010781,2]
[348077270,1736295058473,-150.0,0.00010796,2]
[348077271,1736295058482,-4000.0,0.000108,3]
[348077272,1736295058491,-831.07,0.00010806,2]
[348077273,1736295058500,-500.0,0.00010806,2]
[348077274,1736295058510,-1148.17,0.00010806,2]
[348077275,1736295058520,-688.86,0.00010806,2]
[348077276,1736295058529,-703.21,0.00010806,2]
[348077277,1736295058539,-611.39,0.00010806,2]
[348077278,1736295058549,-1692.47,0.00010806,2]
[348077279,1736295058558,-783.23,0.00010806,2]
[348077280,1736295058568,-1156.54,0.00010806,2]
[348077281,1736295058579,-666.47,0.00010806,2]
[348077282,1736295058588,-500.0,0.00010806,2]
[348077283,1736295058597,-692.78,0.00010806,2]
[348077284,1736295058607,-8146.18683733,0.00010819,2]
[348077285,1736295058616,-155.80627653,0.00010822,2]
[348077286,1736295058626,-150.0,0.00010833,2]
[348077287,1736295058635,-150.0,0.00010833,2]
[348077288,1736295058644,-150.0,0.00010884,2]
[348077289,1736295058654,-150.0,0.00010884,2]
[348077290,1736295058663,-500.0,0.00010899,2]
[348077291,1736295058673,-6100.0,0.000109,3]
[348077292,1736295058682,-200.82614122,0.000109,2]
[348077293,1736295058692,-200.82614116,0.000109,2]
[348077294,1736295058701,-200.82614116,0.000109,2]
[348077295,1736295058710,-200.82614116,0.000109,2]
[348077296,1736295058719,-207.88722328,0.000109,2]
[348077297,1736295058729,-1769.68542531,0.00010914,2]
[348077298,1736295058738,-836.79,0.00010918,2]
[348077299,1736295058750,-1046.36,0.00010918,2]
[348077300,1736295058760,-3547.13,0.00010918,2]
[348077301,1736295058770,-500.0,0.00010918,2]
[348077302,1736295058780,-500.0,0.00010918,2]
[348077303,1736295058789,-645.08,0.00010918,2]
[348077304,1736295058799,-1000.81,0.00010918,2]
[348077305,1736295058809,-950.33,0.00010918,2]
[348077306,1736295058819,-1798.15,0.00010918,2]
[348077307,1736295058829,-1612.63,0.00010918,2]
[348077308,1736295058840,-779.65,0.00010918,2]
[348077309,1736295058849,-822.85,0.00010918,2]
[348077310,1736295058858,-634.08,0.00010918,2]
[348077311,1736295058868,-500.0,0.00010918,2]
[348077312,1736295058878,-567.83,0.00010918,2]
[348077313,1736295058888,-1701.91,0.00010918,2]
[348077314,1736295058899,-1042.63,0.00010918,2]
[348077315,1736295058910,-655.17,0.00010918,2]
[348077316,1736295058920,-749.63,0.00010918,2]
[348077317,1736295058930,-627.87,0.00010918,2]
[348077318,1736295058939,-552.51,0.00010918,2]
[348077319,1736295058949,-500.0,0.00010918,2]
[348077320,1736295058958,-759.41,0.00010918,2]
[348077321,1736295058967,-532.98,0.00010918,2]
[348077322,1736295058980,-500.0,0.00010918,2]
[348077323,1736295058989,-643.42,0.00010918,2]
[348077324,1736295058999,-500.0,0.00010918,2]
[348077325,1736295059008,-722.86,0.00010918,2]
[348077326,1736295059018,-2163.24,0.00010918,2]
[348077327,1736295059028,-1254.51,0.00010919,2]
[348077328,1736295059038,-942.19,0.00010919,2]
[348077329,1736295059047,-681.67,0.00010919,2]
[348077330,1736295059056,-523.745524,0.00010919,2]
[348077331,1736295059065,-520.946511,0.00010919,2]
[348077332,1736295059076,-1885.19,0.00010919,2]
[348077333,1736295059086,-500.0,0.00010919,2]
[348077334,1736295059095,-500.0,0.00010919,2]
[348077335,1736295059105,-500.0,0.00010919,2]
[348077336,1736295059115,-500.0,0.00010919,2]
[348077337,1736295059124,-508.68,0.00010919,2]
[348077338,1736295059134,-377.73117067,0.00010919,2]
[348077339,1736295059143,-500.0,0.00010919,2]
[348077340,1736295059153,-153.09,0.00010919,2]
[348077341,1736295059163,-1307.28,0.00010919,2]
[348077342,1736295059172,-500.0,0.00010919,2]
[348077343,1736295059182,-500.0,0.00010919,2]
[348077344,1736295059192,-500.0,0.00010919,2]
[348077345,1736295059202,-500.0,0.00010919,2]
[348077346,1736295059211,-500.0,0.00010919,2]
[348077347,1736295059220,-500.0,0.00010919,2]
[348077348,1736295059230,-500.0,0.00010919,2]
[348077349,1736295059239,-500.0,0.00010919,2]
[348077350,1736295059249,-500.0,0.00010919,2]
[348077351,1736295059258,-500.0,0.00010919,2]
[348077352,1736295059267,-500.0,0.00010919,2]
[348077353,1736295059277,-500.0,0.00010919,2]
[348077354,1736295059286,-500.0,0.00010919,2]
[348077355,1736295059295,-612.4,0.00010919,2]
[348077356,1736295059305,-349.12075554,0.00010919,2]
[348077357,1736295059314,-182.2613797,0.00010919,2]
[348077358,1736295059325,-528.19,0.00010919,2]
[348077359,1736295059488,-500.0,0.00010919,2]
[348077360,1736295059498,-158.30895728,0.00010919,2]
[348077361,1736295059508,-500.0,0.00010919,2]
[348077362,1736295059518,-500.0,0.00010919,2]
[348077363,1736295059528,-425.84583452,0.00010919,2]
[348077364,1736295059538,-500.0,0.00010919,2]
[348077365,1736295059547,-500.0,0.00010919,2]
[348077366,1736295059558,-500.0,0.00010919,2]
[348077367,1736295059567,-500.0,0.00010919,2]
[348077368,1736295059577,-500.0,0.00010919,2]
[348077369,1736295059587,-500.0,0.00010919,2]
[348077370,1736295059597,-500.0,0.00010919,2]
[348077371,1736295059606,-533.0,0.00010919,2]
[348077372,1736295059616,-500.0,0.00010919,2]
[348077373,1736295059625,-500.0,0.00010919,2]
[348077374,1736295059634,-500.0,0.00010919,2]
[348077375,1736295059643,-500.0,0.00010919,2]
[348077376,1736295059652,-551.49,0.00010919,2]
[348077377,1736295059662,-500.0,0.00010919,2]
[348077378,1736295059672,-500.0,0.00010919,2]
[348077379,1736295059682,-500.0,0.00010919,2]
[348077380,1736295059691,-500.0,0.00010919,2]
[348077381,1736295059701,-500.0,0.00010919,2]
[348077382,1736295059710,-288.17502075,0.00010919,2]
[348077383,1736295059719,-500.0,0.00010919,2]
[348077384,1736295059728,-500.0,0.00010919,2]
[348077385,1736295059737,-500.0,0.00010919,2]
[348077386,1736295059747,-500.0,0.00010919,2]
[348077387,1736295059760,-500.0,0.00010919,2]
[348077388,1736295059770,-500.0,0.00010919,2]
[348077389,1736295059780,-500.0,0.00010919,2]
[348077390,1736295059789,-500.0,0.00010919,2]
[348077391,1736295059800,-500.0,0.00010919,2]
[348077392,1736295059810,-500.0,0.00010919,2]
[348077393,1736295059820,-531.34,0.00010919,2]
[348077394,1736295059832,-609.99,0.00010919,2]
[348077395,1736295059841,-500.0,0.00010919,2]
[348077396,1736295059851,-150.16846378,0.00010919,2]
[348077397,1736295059860,-500.0,0.00010919,2]
[348077398,1736295059871,-500.0,0.00010919,2]
[348077399,1736295059880,-548.82,0.00010919,2]
[348077400,1736295059889,-500.0,0.00010919,2]
[348077401,1736295059899,-539.9,0.00010919,2]
[348077402,1736295059909,-500.0,0.00010919,2]
[348077403,1736295059919,-500.0,0.00010919,2]
[348077404,1736295059930,-558.02,0.00010919,2]
[348077405,1736295059940,-767.91,0.00010919,2]
[348077406,1736295059949,-500.0,0.00010919,2]
[348077407,1736295059959,-648.0,0.00010919,2]
[348077408,1736295059968,-500.0,0.00010919,2]
[348077409,1736295059978,-500.0,0.00010919,2]
[348077410,1736295059988,-500.0,0.00010919,2]
[348077411,1736295059998,-500.0,0.00010919,2]
[348077412,1736295060010,-506.45,0.00010919,2]
[348077413,1736295060021,-500.0,0.00010919,2]
[348077414,1736295060030,-646.98947916,0.00010919,2]
[348077415,1736295060041,-500.0,0.00010919,2]
[348077416,1736295060052,-608.13,0.00010919,2]
[348077417,1736295060063,-500.0,0.00010919,2]
[348077418,1736295060075,-500.0,0.00010919,2]
[348077419,1736295060085,-500.0,0.00010919,2]
[348077420,1736295060095,-500.0,0.00010919,2]
[348077421,1736295060105,-500.0,0.00010919,2]
[348077422,1736295060114,-500.0,0.00010919,2]
[348077423,1736295060123,-500.0,0.00010919,2]
[348077424,1736295060133,-500.0,0.00010919,2]
[348077425,1736295060142,-500.0,0.00010919,2]
[348077426,1736295060152,-500.0,0.00010919,2]
[348077427,1736295060163,-500.0,0.00010919,2]
[348077428,1736295060172,-616.28,0.00010919,2]
[348077429,1736295060182,-500.0,0.00010919,2]
[348077430,1736295060191,-500.0,0.00010919,2]
[348077431,1736295060201,-1046.88,0.00010919,2]
[348077432,1736295060211,-425.62519785,0.00010919,2]
[348077433,1736295060221,-500.0,0.00010919,2]
[348077434,1736295060231,-500.0,0.00010919,2]
[348077435,1736295060240,-500.0,0.00010919,2]
[348077436,1736295060249,-500.0,0.00010919,2]
[348077437,1736295060259,-500.0,0.00010919,2]
[348077438,1736295060269,-1000.0,0.00010919,2]
[348077439,1736295060279,-2570.46,0.00010919,2]
[348077440,1736295060288,-730.04,0.00010919,2]
[348077441,1736295060298,-500.0,0.00010919,2]
[348077442,1736295060308,-500.0,0.00010919,2]
[348077443,1736295060318,-673.79,0.00010919,2]
[348077444,1736295060332,-500.0,0.00010919,2]
[348077445,1736295060342,-622.67,0.00010919,2]
[348077446,1736295060352,-500.0,0.00010919,2]
[348077447,1736295060362,-500.0,0.00010919,2]
[348077448,1736295060372,-500.0,0.00010919,2]
[348077449,1736295060382,-1463.01,0.00010919,2]
[348077450,1736295060392,-1754.48,0.00010919,2]
[348077451,1736295060401,-500.0,0.00010919,2]
[348077452,1736295060411,-500.0,0.00010919,2]
[348077453,1736295060420,-500.0,0.00010919,2]
[348077454,1736295060430,-500.0,0.00010919,2]
[348077455,1736295060440,-500.0,0.00010919,2]
[348077456,1736295060449,-500.0,0.00010919,2]
[348077457,1736295060458,-1866.42,0.00010919,2]
[348077458,1736295060468,-284.13020217,0.00010919,2]
[348077459,1736295060478,-500.0,0.00010919,2]
[348077460,1736295060487,-1236.86,0.00010919,2]
[348077461,1736295060497,-626.78,0.00010919,2]
[348077462,1736295060506,-500.0,0.00010919,2]
[348077463,1736295060516,-500.0,0.00010919,2]
[348077464,1736295060526,-1347.36,0.00010919,2]
[348077465,1736295060535,-500.0,0.00010919,2]
[348077466,1736295060545,-500.0,0.00010919,2]
[348077467,1736295060554,-500.0,0.00010919,2]
[348077468,1736295060564,-500.0,0.00010919,2]
[348077469,1736295060574,-1183.93,0.00010919,2]
[348077470,1736295060585,-500.0,0.00010919,2]
[348077471,1736295060594,-500.22,0.00010919,2]
[348077472,1736295060604,-609.7,0.00010919,2]
[348077473,1736295060613,-1484.49,0.00010919,2]
[348077474,1736295060623,-500.0,0.00010919,2]
[348077475,1736295060632,-500.0,0.00010919,2]
[348077476,1736295060642,-1267.42,0.0001092,2]
[348077477,1736295060651,-692.26,0.0001092,2]
[348077478,1736295060661,-500.0,0.0001092,2]
[348077479,1736295060670,-500.0,0.0001092,2]
[348077480,1736295060680,-500.0,0.0001092,2]
[348077481,1736295060690,-500.0,0.0001092,2]
[348077482,1736295060699,-500.0,0.0001092,2]
[348077483,1736295060709,-500.0,0.0001092,2]
[348077484,1736295060719,-549.94,0.0001092,2]
[348077485,1736295060729,-760.1,0.0001092,2]
[348077486,1736295060738,-649.67,0.0001092,2]
[348077487,1736295060751,-1273.41,0.0001092,2]
[348077488,1736295060761,-3086.54,0.0001092,2]
[348077489,1736295060770,-607.04,0.0001092,2]
[348077490,1736295060780,-500.0,0.0001092,2]
[348077491,1736295060791,-500.0,0.0001092,2]
[348077492,1736295060801,-1500.93,0.0001092,2]
[348077493,1736295060810,-186.35780254,0.0001092,2]
[348077494,1736295060820,-596.56,0.0001092,2]
[348077495,1736295060833,-150.0,0.00010935,2]
[348077496,1736295060843,-150.0,0.00010935,2]
[348077497,1736295060853,-1496.51,0.00010958,2]
[348077498,1736295060862,-7500.0,0.00010958,2]
[348077499,1736295060872,-7500.0,0.00010958,2]
[348077500,1736295060881,-7500.0,0.00010958,2]
[348077501,1736295060891,-7500.0,0.00010958,2]
[348077502,1736295060901,-7500.0,0.00010958,2]
[348077503,1736295060911,-4400.63875044,0.00010958,2]
[348077504,1736295060921,-192.55,0.00010959,2]
[348077505,1736295060930,-150.0,0.00010959,2]
[348077506,1736295060941,-150.0,0.00010965,2]
[348077507,1736295060950,-400.0,0.00010986,2]
[348077508,1736295060960,-150.0,0.00010987,2]
[348077509,1736295060970,-150.0,0.00010987,2]
[348077510,1736295060979,-440.34366744,0.00010995,2]
[348077511,1736295060989,-550.0,0.00011,2]
[348077512,1736295060998,-419.08,0.00011,2]
[348077513,1736295061008,-500.0,0.00011,2]
[348077514,1736295061017,-500.0,0.00011,2]
[348077515,1736295061027,-500.0,0.00011,2]
[348077516,1736295061036,-587.0,0.00011004,2]
[348077517,1736295061047,-200.82614116,0.00011021,2]
[348077518,1736295061056,-150.0,0.00011021,2]
[348077519,1736295061066,-150.0,0.00011038,2]
[348077520,1736295061077,-150.0,0.00011038,2]
[348077521,1736295061089,-1151.0,0.00011064,2]
[348077522,1736295061098,-831.07,0.0001108,2]
[348077523,1736295061108,-500.0,0.0001108,2]
[348077524,1736295061118,-1148.17,0.0001108,2]
[348077525,1736295061127,-688.86,0.0001108,2]
[348077526,1736295061137,-703.21,0.0001108,2]
[348077527,1736295061147,-611.39,0.0001108,2]
[348077528,1736295061156,-1692.47,0.0001108,2]
[348077529,1736295061165,-783.23,0.0001108,2]
[348077530,1736295061175,-1156.54,0.0001108,2]
[348077531,1736295061184,-666.47,0.0001108,2]
[348077532,1736295061194,-500.0,0.0001108,2]
[348077533,1736295061203,-692.78,0.0001108,2]
[348077534,1736295061212,-150.0,0.00011089,2]
[348077535,1736295061221,-150.0,0.00011089,2]
[348077536,1736295061231,-155.80627653,0.00011098,2]
[348077537,1736295061241,-31618.20417044,0.00011099,2]
[348077538,1736295061251,-31618.20417036,0.00011099,2]
[348077539,1736295061261,-31618.20417036,0.00011099,2]
[348077540,1736295061271,-207.88722328,0.000111,2]
[348077541,1736295061282,-150.0,0.00011133,2]
[348077542,1736295061292,-150.0,0.00011141,2]
[348077543,1736295061302,-150.0,0.00011141,2]
[348077544,1736295061312,-250.0,0.00011142,2]
[348077545,1736295061322,-1000.0,0.00011143,2]
[348077546,1736295061336,-32551.005661,0.00011167,2]
[348077547,1736295061349,-200.0,0.00011167,2]
[348077548,1736295061359,-45683.46573694,0.00011167,2]
[348077549,1736295061368,-45683.46573694,0.00011167,2]
[348077550,1736295061377,-7715.03155646,0.00011167,2]
[348077551,1736295061388,-3666.49094588,0.00011167,2]
[348077552,1736295061397,-3304.87574127,0.00011168,2]
[348077553,1736295061407,-567.24320179,0.00011168,2]
[348077554,1736295061417,-1273.62246022,0.00011168,2]
[348077555,1736295061427,-2659.74960812,0.00011168,2]
[348077556,1736295061437,-47869.0582366,0.00011168,2]
[348077557,1736295061446,-8132.35889082,0.00011169,2]
[348077558,1736295061455,-499.32988811,0.00011169,2]
[348077559,1736295061465,-47869.0582366,0.00011169,2]
[348077560,1736295061475,-2619.944493,0.00011169,2]
[348077561,1736295061485,-2659.74960812,0.00011169,2]
[348077562,1736295061494,-3886.31333352,0.00011169,2]
[348077563,1736295061504,-215.46908467,0.0001117,2]
[348077564,1736295061513,-8132.35889082,0.0001117,2]
[348077565,1736295061522,-499.32988811,0.0001117,2]
[348077566,1736295061532,-45683.46573694,0.0001117,2]
[348077567,1736295061542,-8995.05872685,0.0001117,2]
[348077568,1736295061551,-47869.0582366,0.00011171,2]
[348077569,1736295061561,-2620.55594961,0.00011171,2]
[348077570,1736295061571,-5446.99886769,0.00011171,2]
[348077571,1736295061585,-1578.01904942,0.00011172,2]
[348077572,1736295061595,-5446.99886769,0.00011172,2]
[348077573,1736295061605,-3300.36840444,0.00011172,2]
[348077574,1736295061615,-6255.42234432,0.00011172,2]
[348077575,1736295061624,-28636.40972621,0.00011173,2]
[348077576,1736295061634,-1483.80800102,0.00011173,2]
[348077577,1736295061643,-8995.05872685,0.00011173,2]
[348077578,1736295061653,-1483.80800102,0.00011173,2]
[348077579,1736295061664,-1503.39156232,0.00011173,2]
[348077580,1736295061674,-1578.01904942,0.00011173,2]
[348077581,1736295061683,-200.0,0.00011173,2]
[348077582,1736295061693,-3304.87574127,0.00011173,2]
[348077583,1736295061703,-2659.74960812,0.00011173,2]
[348077584,1736295061712,-1503.39156232,0.00011174,2]
[348077585,1736295061722,-8132.35889082,0.00011174,2]
[348077586,1736295061732,-2338.66543406,0.00011174,2]
[348077587,1736295061742,-200.0,0.00011174,2]
[348077588,1736295061751,-7715.03155646,0.00011174,2]
[348077589,1736295061765,-1273.62246022,0.00011174,2]
[348077590,1736295061774,-29665.99154172,0.00011175,2]
[348077591,1736295061784,-3666.49094588,0.00011175,2]
[348077592,1736295061794,-200.0,0.00011175,2]
[348077593,1736295061805,-2620.55594961,0.00011175,2]
[348077594,1736295061815,-2338.66543406,0.00011175,2]
[348077595,1736295061826,-1578.01904942,0.00011175,2]
[348077596,1736295061836,-215.46908467,0.00011176,2]
[348077597,1736295061845,-28636.40972621,0.00011176,2]
[348077598,1736295061855,-1273.62246022,0.00011176,2]
[348077599,1736295061865,-567.24320179,0.00011176,2]
[348077600,1736295061875,-2659.74960812,0.00011176,2]
[348077601,1736295061884,-3666.49094588,0.00011176,2]
[348077602,1736295061894,-6255.42234432,0.00011176,2]
[348077603,1736295061905,-215.46908467,0.00011177,2]
[348077604,1736295061915,-200.0,0.00011177,2]
[348077605,1736295061924,-2338.66543406,0.00011177,2]
[348077606,1736295061934,-200.0,0.00011177,2]
[348077607,1736295061944,-5446.99886769,0.00011177,2]
[348077608,1736295061954,-32551.005661,0.00011177,2]
[348077609,1736295061964,-200.0,0.00011178,2]
[348077610,1736295061973,-28636.40972621,0.00011178,2]
[348077611,1736295061983,-28636.40972621,0.00011178,2]
[348077612,1736295061993,-567.24320179,0.00011178,2]
[348077613,1736295062002,-200.0,0.00011178,2]
[348077614,1736295062012,-200.0,0.00011178,2]
[348077615,1736295062021,-29665.99154172,0.00011178,2]
[348077616,1736295062030,-215.46908467,0.00011179,2]
[348077617,1736295062040,-200.0,0.00011179,2]
[348077618,1736295062049,-2619.944493,0.00011179,2]
[348077619,1736295062058,-3300.36840444,0.00011179,2]
[348077620,1736295062068,-567.24320179,0.0001118,2]
[348077621,1736295062079,-8995.05872685,0.0001118,2]
[348077622,1736295062089,-8995.05872685,0.0001118,2]
[348077623,1736295062099,-28636.40972621,0.00011181,2]
[348077624,1736295062108,-3886.31333352,0.00011181,2]
[348077625,1736295062118,-1483.80800102,0.00011181,2]
[348077626,1736295062127,-3300.36840444,0.00011182,2]
[348077627,1736295062136,-6255.42234432,0.00011182,2]
[348077628,1736295062146,-32551.005661,0.00011182,2]
[348077629,1736295062155,-2338.66543406,0.00011182,2]
[348077630,1736295062165,-200.0,0.00011182,2]
[348077631,1736295062174,-1782.85826776,0.00011182,2]
[348077632,1736295062183,-3000.0,0.00011182,2]
[348077633,1736295062193,-36125.07965851,0.00011182,2]
[348077634,1736295062203,-28636.40972621,0.00011183,2]
[348077635,1736295062213,-3304.87574127,0.00011183,2]
[348077636,1736295062222,-3300.36840444,0.00011183,2]
[348077637,1736295062232,-45683.46573694,0.00011183,2]
[348077638,1736295062241,-8132.35889082,0.00011183,2]
[348077639,1736295062250,-17446.26791014,0.00011183,2]
[348077640,1736295062260,-29665.99154172,0.00011184,2]
[348077641,1736295062269,-55395.09433042,0.00011184,2]
[348077642,1736295062279,-3347.5110471,0.00011184,2]
[348077643,1736295062291,-32551.005661,0.00011184,2]
[348077644,1736295062301,-7976.0419973,0.00011184,2]
[348077645,1736295062310,-200.0,0.00011184,2]
[348077646,1736295062320,-200.0,0.00011184,2]
[348077647,1736295062332,-8132.35889082,0.00011184,2]
[348077648,1736295062341,-17446.26791014,0.00011185,2]
[348077649,1736295062351,-567.24320179,0.00011185,2]
[348077650,1736295062361,-1925.00521191,0.00011185,2]
[348077651,1736295062822,-734.74439621,0.00011185,2]
[348077652,1736295062834,-47869.0582366,0.00011185,2]
[348077653,1736295062844,-3886.31333352,0.00011185,2]
[348077654,1736295062854,-200.0,0.00011185,2]
[348077655,1736295062863,-29665.99154172,0.00011185,2]
[348077656,1736295062872,-2619.944493,0.00011185,2]
[348077657,1736295062882,-8995.05872685,0.00011185,2]
[348077658,1736295062892,-47869.0582366,0.00011185,2]
[348077659,1736295062904,-499.32988812,0.00011185,2]
[348077660,1736295062915,-1503.39156232,0.00011186,2]
[348077661,1736295062924,-2619.944493,0.00011186,2]
[348077662,1736295062934,-200.0,0.00011186,2]
[348077663,1736295062944,-1273.62246022,0.00011187,2]
[348077664,1736295062953,-7715.03155646,0.00011187,2]
[348077665,1736295062962,-55395.09433042,0.00011187,2]
[348077666,1736295062972,-1578.01904942,0.00011187,2]
[348077667,1736295062981,-6255.42234432,0.00011187,2]
[348077668,1736295062991,-499.32988811,0.00011188,2]
[348077669,1736295063000,-3798.15399563,0.00011188,2]
[348077670,1736295063020,-1648.84487206,0.00011188,2]
[348077671,1736295063029,-2064.26671603,0.00011188,2]
[348077672,1736295063040,-1236.10168841,0.00011188,2]
[348077673,1736295063050,-215.46908467,0.00011188,2]
[348077674,1736295063059,-1503.39156232,0.00011188,2]
[348077675,1736295063069,-499.32988812,0.00011189,2]
[348077676,1736295063080,-745.75772648,0.00011189,2]
[348077677,1736295063091,-645.12,0.00011189,2]
[348077678,1736295063116,-296.13443335,9.449e-05,2]
[348077679,1736295063584,-4703.86556665,9.449e-05,2]
[348077680,1736295063595,-500.0,9.822e-05,2]
[348077681,1736295063605,-500.0,0.00010096,2]
[348077682,1736295063614,-31618.20417036,0.00011099,2]
[348077683,1736295063624,-1229.67822313,0.00011189,2]
[348077684,1736295063633,-499.32988811,0.00011189,2]
[348077685,1736295063642,-6255.42234432,0.00011189,2]
[348077686,1736295063651,-2619.944493,0.00011189,2]
[348077687,1736295063660,-1590.4478251,0.00011189,2]
[348077688,1736295063683,-500.0,0.0001037,2]
[348077689,1736295063693,-2295.86550842,0.00011189,2]
[348077690,1736295063703,-2977.21449158,0.00011189,2]
[348077691,1736295063714,-4709.54787856,0.00011189,2]
[348077692,1736295063724,-28.26918632,0.00011189,2]
[348077693,1736295063733,-7715.03155646,0.00011189,2]
[348077694,1736295063743,-3886.31333352,0.00011189,2]
[348077695,1736295063753,-3886.31333352,0.00011189,2]
[348077696,1736295063764,-499.32988812,0.00011189,2]
[348077697,1736295063773,-2551.29446352,0.00011189,2]
[348077698,1736295063785,-749.07394092,0.00011189,2]
[348077699,1736295063794,-499.32988812,0.00011189,2]
[348077700,1736295063804,-25.85211206,0.00011189,2]
[348077701,1736295063815,-473.47777605,0.00011189,2]
[348077702,1736295063825,-2338.66543406,0.0001119,2]
[348077703,1736295063836,-592.67564283,0.0001119,2]
[348077704,1736295063857,-1035.06349071,0.0001119,2]